fUST/lending_fUST_20250220
["ID","MTS","AMOUNT","RATE_DAILY","PERIOD"]
[353705290,1739994652320,-500.0,0.00014027,2]
[353705292,1739994652330,-500.0,0.00014027,2]
[353705294,1739994652339,-500.0,0.00014027,2]
[353705296,1739994652349,-500.0,0.00014027,2]
[353705298,1739994652359,-500.0,0.00014027,2]
[353705300,1739994652368,-500.0,0.00014027,2]
[353705302,1739994652377,-500.0,0.00014027,2]
[353705304,1739994652387,-500.0,0.00014027,2]
[353705306,1739994652396,-500.0,0.00014027,2]
[353705308,1739994652405,-422.59801857,0.00014027,2]
[353705310,1739994652414,-500.0,0.00014027,2]
[353705312,1739994652423,-500.0,0.00014027,2]
[353705314,1739994652433,-280.68615391,0.00014027,2]
[353705315,1739994652442,-500.0,0.00014027,2]
[353705317,1739994652452,-500.0,0.00014027,2]
[353705319,1739994652461,-539.86,0.00014027,2]
[353705321,1739994652471,-500.0,0.00014027,2]
[353705324,1739994652483,-500.0,0.00014027,2]
[353705325,1739994652494,-509.91734888,0.00014027,2]
[353705327,1739994652504,-500.0,0.00014027,2]
[353705329,1739994652514,-1171.45,0.00014027,2]
[353705331,1739994652523,-516.29,0.00014027,2]
[353705333,1739994652533,-500.0,0.00014027,2]
[353705335,1739994652544,-2720.91,0.00014027,2]
[353705337,1739994652554,-500.0,0.00014027,2]
[353705339,1739994652564,-505.14873693,0.00014027,2]
[353705341,1739994652574,-1094.49,0.00014027,2]
[353705343,1739994652583,-500.0,0.00014027,2]
[353705345,1739994652593,-500.0,0.00014027,2]
[353705347,1739994652602,-830.75,0.00014027,2]
[353705349,1739994652612,-500.0,0.00014027,2]
[353705351,1739994652621,-502.97796487,0.00014027,2]
[353705353,1739994652630,-1198.49,0.00014027,2]
[353705355,1739994652640,-326.75827312,0.00014027,2]
[353705357,1739994652650,-692.65,0.00014027,2]
[353705359,1739994652664,-3116.07,0.00014027,2]
[353705362,1739994652674,-500.0,0.00014027,2]
[353705363,1739994652683,-500.0,0.00014027,2]
[353705365,1739994652694,-500.0,0.00014027,2]
[353705368,1739994652704,-500.0,0.00014027,2]
[353705370,1739994652714,-500.0,0.00014027,2]
[353705371,1739994652723,-9751.97,0.00014027,2]
[353705373,1739994652734,-500.0,0.00014027,2]
[353705375,1739994652744,-500.0,0.00014027,2]
[353705377,1739994652753,-799.24,0.00014027,2]
[353705379,1739994652762,-500.0,0.00014027,2]
[353705382,1739994652772,-500.0,0.00014027,2]
[353705383,1739994652782,-500.0,0.00014027,2]
[353705385,1739994652791,-500.0,0.00014027,2]
[353705387,1739994652800,-1140.83,0.00014027,2]
[353705389,1739994652809,-500.0,0.00014027,2]
[353705391,1739994652819,-1175.9,0.00014027,2]
[353705393,1739994652828,-500.0,0.00014027,2]
[353705395,1739994652841,-500.0,0.00014027,2]
[353705397,1739994652851,-500.0,0.00014027,2]
[353705399,1739994652861,-526.28,0.00014027,2]
[353705401,1739994652871,-500.0,0.00014027,2]
[353705403,1739994652881,-500.0,0.00014027,2]
[353705405,1739994652891,-500.0,0.00014027,2]
[353705407,1739994652901,-500.0,0.00014027,2]
[353705409,1739994652911,-500.0,0.00014027,2]
[353705411,1739994652922,-500.0,0.00014027,2]
[353705413,1739994652932,-500.0,0.00014027,2]
[353705415,1739994652941,-500.0,0.00014027,2]
[353705417,1739994652951,-500.0,0.00014027,2]
[353705419,1739994652960,-500.0,0.00014027,2]
[353705421,1739994652971,-892.99,0.00014027,2]
[353705423,1739994652981,-500.0,0.00014027,2]
[353705425,1739994652991,-500.0,0.00014027,2]
[353705427,1739994653000,-500.0,0.00014027,2]
[353705429,1739994653010,-2159.61,0.00014027,2]
[353705431,1739994653019,-500.0,0.00014027,2]
[353705432,1739994653029,-500.0,0.00014027,2]
[353705434,1739994653038,-500.0,0.00014027,2]
[353705437,1739994653048,-500.0,0.00014027,2]
[353705438,1739994653058,-1264.48,0.00014027,2]
[353705440,1739994653068,-500.0,0.00014027,2]
[353705442,1739994653078,-500.0,0.00014027,2]
[353705444,1739994653088,-500.0,0.00014027,2]
[353705446,1739994653097,-2363.05,0.00014027,2]
[353705448,1739994653108,-1079.67,0.00014027,2]
[353705450,1739994653118,-6370.63,0.00014027,2]
[353705452,1739994653127,-500.0,0.00014027,2]
[353705454,1739994653136,-500.0,0.00014027,2]
[353705456,1739994653146,-500.0,0.00014027,2]
[353705458,1739994653155,-1311.75,0.00014027,2]
[353705460,1739994653164,-500.0,0.00014027,2]
[353705462,1739994653174,-500.0,0.00014027,2]
[353705464,1739994653183,-500.0,0.00014027,2]
[353705466,1739994653193,-934.61,0.00014027,2]
[353705479,1739994653301,-500.0,0.00014027,2]
[353705481,1739994653311,-500.0,0.00014027,2]
[353705483,1739994653321,-500.0,0.00014027,2]
[353705485,1739994653332,-500.0,0.00014027,2]
[353705487,1739994653342,-500.0,0.00014027,2]
[353705489,1739994653352,-500.0,0.00014027,2]
[353705491,1739994653362,-2409.06,0.00014027,2]
[353705493,1739994653372,-1572.98,0.00014027,2]
[353705495,1739994653382,-500.0,0.00014027,2]
[353705497,1739994653391,-285.08607143,0.00014027,2]
[353705499,1739994653401,-507.24,0.00014027,2]
[353705501,1739994653411,-9076.95,0.00014027,2]
[353705503,1739994653421,-500.0,0.00014027,2]
[353705505,1739994653430,-1313.63,0.00014027,2]
[353705507,1739994653440,-500.0,0.00014027,2]
[353705508,1739994653450,-500.0,0.00014027,2]
[353705509,1739994653461,-1949.7,0.00014027,2]
[353705510,1739994653471,-500.0,0.00014027,2]
[353705511,1739994653481,-500.0,0.00014027,2]
[353705512,1739994653492,-500.0,0.00014027,2]
[353705513,1739994653502,-708.48,0.00014027,2]
[353705515,1739994653512,-872.8,0.00014027,2]
[353705517,1739994653521,-542.6805839,0.00014027,2]
[353705519,1739994653531,-3593.72,0.00014027,2]
[353705521,1739994653542,-501.67176249,0.00014027,2]
[353705523,1739994653552,-500.0,0.00014027,2]
[353705525,1739994653562,-500.0,0.00014027,2]
[353705527,1739994653572,-3776.89,0.00014027,2]
[353705529,1739994653581,-751.26935303,0.00014092,2]
[353705531,1739994653591,-193.0,0.00014104,2]
[353705532,1739994653600,-1071.854575,0.00014109,2]
[353705534,1739994653610,-1071.854575,0.00014109,2]
[353705537,1739994653619,-459.394077,0.00014109,2]
[353705539,1739994653629,-459.394077,0.00014109,2]
[353705540,1739994653639,-502.93515204,0.00014109,2]
[353705542,1739994653649,-500.0,0.00014109,2]
[353705545,1739994653663,-500.0,0.00014109,2]
[353705547,1739994653672,-500.0,0.00014109,2]
[353705549,1739994653683,-500.0,0.00014109,2]
[353705551,1739994653693,-500.0,0.00014109,2]
[353705553,1739994653703,-420.76,0.00014109,2]
[353705555,1739994653713,-500.0,0.00014109,2]
[353705557,1739994653722,-801.74,0.00014109,2]
[353705558,1739994653732,-534.19,0.00014109,2]
[353705561,1739994653743,-778.36,0.00014109,2]
[353705563,1739994653753,-500.0,0.00014109,2]
[353705565,1739994653763,-500.0,0.00014109,2]
[353705567,1739994653772,-500.0,0.00014109,2]
[353705569,1739994653781,-761.72,0.00014109,2]
[353705571,1739994653791,-500.0,0.00014109,2]
[353705573,1739994653801,-622.44305527,0.00014109,2]
[353705575,1739994653811,-500.0,0.00014109,2]
[353705577,1739994653820,-500.0,0.00014109,2]
[353705579,1739994653830,-779.99,0.00014109,2]
[353705581,1739994653839,-605.42,0.00014109,2]
[353705583,1739994653851,-500.0,0.00014109,2]
[353705585,1739994653861,-500.0,0.00014109,2]
[353705587,1739994653871,-500.0,0.00014109,2]
[353705589,1739994653880,-500.0,0.00014109,2]
[353705591,1739994653890,-500.0,0.00014109,2]
[353705593,1739994653899,-500.0,0.00014109,2]
[353705595,1739994653909,-775.73,0.00014109,2]
[353705597,1739994653919,-500.0,0.00014109,2]
[353705599,1739994653928,-500.0,0.00014109,2]
[353705601,1739994653937,-500.0,0.00014109,2]
[353705603,1739994653947,-500.0,0.00014109,2]
[353705605,1739994653957,-500.0,0.00014109,2]
[353705607,1739994653966,-500.0,0.00014109,2]
[353705609,1739994653977,-504.76265299,0.00014109,2]
[353705611,1739994653986,-500.0,0.00014109,2]
[353705613,1739994653996,-500.0,0.00014109,2]
[353705615,1739994654005,-500.0,0.00014109,2]
[353705617,1739994654014,-618.32541929,0.00014109,2]
[353705619,1739994654025,-580.68407185,0.00014109,2]
[353705621,1739994654034,-500.0,0.00014109,2]
[353705623,1739994654043,-500.0,0.00014109,2]
[353705625,1739994654054,-500.0,0.00014109,2]
[353705627,1739994654064,-539.86,0.00014109,2]
[353705629,1739994654073,-635.08690471,0.00014109,2]
[353705631,1739994654083,-1171.45,0.00014109,2]
[353705633,1739994654092,-500.0,0.00014109,2]
[353705635,1739994654102,-2720.91,0.00014109,2]
[353705637,1739994654112,-500.0,0.00014109,2]
[353705639,1739994654121,-1094.49,0.00014109,2]
[353705641,1739994654133,-500.0,0.00014109,2]
[353705643,1739994654143,-500.0,0.00014109,2]
[353705645,1739994654153,-830.75,0.00014109,2]
[353705647,1739994654163,-518.77801657,0.00014109,2]
[353705650,1739994654174,-1198.49,0.00014109,2]
[353705652,1739994654183,-692.65,0.00014109,2]
[353705653,1739994654193,-3116.07,0.00014109,2]
[353705655,1739994654203,-500.0,0.00014109,2]
[353705658,1739994654213,-500.0,0.00014109,2]
[353705660,1739994654222,-500.0,0.00014109,2]
[353705662,1739994654232,-500.0,0.00014109,2]
[353705664,1739994654241,-9751.97,0.00014109,2]
[353705665,1739994654250,-500.0,0.00014109,2]
[353705667,1739994654260,-500.0,0.00014109,2]
[353705669,1739994654269,-799.24,0.00014109,2]
[353705671,1739994654280,-500.0,0.00014109,2]
[353705674,1739994654291,-500.0,0.00014109,2]
[353705676,1739994654301,-500.0,0.00014109,2]
[353705678,1739994654311,-500.0,0.00014109,2]
[353705680,1739994654320,-1140.83,0.00014109,2]
[353705682,1739994654330,-500.0,0.00014109,2]
[353705684,1739994654339,-1175.9,0.00014109,2]
[353705686,1739994654349,-500.0,0.00014109,2]
[353705688,1739994654359,-500.0,0.00014109,2]
[353705690,1739994654368,-595.42436319,0.00014109,2]
[353705692,1739994654377,-526.28,0.00014109,2]
[353705694,1739994654387,-500.0,0.00014109,2]
[353705696,1739994654396,-500.0,0.00014109,2]
[353705698,1739994654405,-500.0,0.00014109,2]
[353705700,1739994654415,-503.65355636,0.00014109,2]
[353705702,1739994654426,-500.0,0.00014109,2]
[353705704,1739994654435,-500.0,0.00014109,2]
[353705706,1739994654444,-500.0,0.00014109,2]
[353705708,1739994654453,-500.0,0.00014109,2]
[353705710,1739994654463,-502.54818159,0.00014109,2]
[353705712,1739994654472,-892.99,0.00014109,2]
[353705713,1739994654481,-500.0,0.00014109,2]
[353705715,1739994654492,-500.0,0.00014109,2]
[353705717,1739994654501,-500.0,0.00014109,2]
[353705719,1739994654511,-2159.61,0.00014109,2]
[353705722,1739994654522,-500.0,0.00014109,2]
[353705723,1739994654531,-500.0,0.00014109,2]
[353705726,1739994654543,-500.0,0.00014109,2]
[353705727,1739994654552,-500.0,0.00014109,2]
[353705729,1739994654562,-1264.48,0.00014109,2]
[353705731,1739994654572,-500.0,0.00014109,2]
[353705735,1739994654594,-500.0,0.00014109,2]
[353705737,1739994654606,-2363.05,0.00014109,2]
[353705739,1739994654616,-1079.67,0.00014109,2]
[353705741,1739994654626,-6370.63,0.00014109,2]
[353705743,1739994654635,-500.0,0.00014109,2]
[353705745,1739994654645,-271.22088126,0.00014109,2]
[353705747,1739994654659,-500.0,0.00014109,2]
[353705749,1739994654669,-1311.75,0.00014109,2]
[353705751,1739994654679,-500.0,0.00014109,2]
[353705753,1739994654689,-500.0,0.00014109,2]
[353705755,1739994654699,-500.0,0.00014109,2]
[353705757,1739994654709,-934.61,0.00014109,2]
[353705759,1739994654718,-500.0,0.00014109,2]
[353705761,1739994654728,-500.0,0.00014109,2]
[353705763,1739994654740,-608.62454332,0.00014109,2]
[353705765,1739994654749,-500.0,0.00014109,2]
[353705767,1739994654759,-500.0,0.00014109,2]
[353705769,1739994654769,-500.0,0.00014109,2]
[353705771,1739994654778,-2409.06,0.00014109,2]
[353705772,1739994654788,-1572.98,0.00014109,2]
[353705774,1739994654797,-500.0,0.00014109,2]
[353705776,1739994654807,-507.24,0.00014109,2]
[353705778,1739994654816,-9076.95,0.00014109,2]
[353705780,1739994654826,-500.0,0.00014109,2]
[353705782,1739994654835,-1313.63,0.00014109,2]
[353705784,1739994654845,-500.0,0.00014109,2]
[353705786,1739994654855,-1949.7,0.00014109,2]
[353705788,1739994654865,-500.0,0.00014109,2]
[353705790,1739994654875,-500.0,0.00014109,2]
[353705792,1739994654885,-314.47,0.00014109,2]
[353705794,1739994654895,-708.48,0.00014109,2]
[353705796,1739994654904,-872.8,0.00014109,2]
[353705798,1739994654913,-3593.72,0.00014109,2]
[353705800,1739994654923,-3776.89,0.00014109,2]
[353705802,1739994654933,-500.0,0.00014191,2]
[353705804,1739994654942,-528.32,0.00014191,2]
[353705806,1739994654952,-435.40909676,0.00014191,2]
[353705807,1739994654961,-500.0,0.00014191,2]
[353705809,1739994654971,-212.3,0.00014191,2]
[353705811,1739994654980,-801.74,0.00014191,2]
[353705813,1739994654990,-534.19,0.00014191,2]
[353705815,1739994654999,-778.36,0.00014191,2]
[353705817,1739994655009,-500.0,0.00014191,2]
[353705819,1739994655019,-500.0,0.00014191,2]
[353705821,1739994655028,-500.0,0.00014191,2]
[353705823,1739994655038,-761.72,0.00014191,2]
[353705825,1739994655048,-500.0,0.00014191,2]
[353705827,1739994655058,-500.0,0.00014191,2]
[353705829,1739994655068,-500.0,0.00014191,2]
[353705831,1739994655077,-779.99,0.00014191,2]
[353705833,1739994655088,-500.0,0.00014191,2]
[353705835,1739994655099,-500.0,0.00014191,2]
[353705837,1739994655109,-500.0,0.00014191,2]
[353705839,1739994655118,-500.0,0.00014191,2]
[353705841,1739994655128,-500.0,0.00014191,2]
[353705843,1739994655137,-775.73,0.00014191,2]
[353705845,1739994655147,-500.0,0.00014191,2]
[353705847,1739994655157,-500.0,0.00014191,2]
[353705849,1739994655166,-229.8,0.00014191,2]
[353705851,1739994655175,-500.0,0.00014191,2]
[353705853,1739994655184,-500.0,0.00014191,2]
[353705855,1739994655194,-500.0,0.00014191,2]
[353705857,1739994655203,-189.88,0.00014191,2]
[353705858,1739994655213,-500.0,0.00014191,2]
[353705860,1739994655222,-500.0,0.00014191,2]
[353705862,1739994655232,-500.0,0.00014191,2]
[353705864,1739994655242,-171.88,0.00014191,2]
[353705866,1739994655251,-500.0,0.00014191,2]
[353705868,1739994655261,-539.86,0.00014191,2]
[353705870,1739994655270,-1171.45,0.00014191,2]
[353705872,1739994655279,-500.0,0.00014191,2]
[353705874,1739994655289,-2720.91,0.00014191,2]
[353705876,1739994655299,-1094.49,0.00014191,2]
[353705878,1739994655308,-500.0,0.00014191,2]
[353705880,1739994655317,-830.75,0.00014191,2]
[353705882,1739994655327,-500.0,0.00014191,2]
[353705884,1739994655336,-1198.49,0.00014191,2]
[353705886,1739994655346,-692.65,0.00014191,2]
[353705888,1739994655356,-3116.07,0.00014191,2]
[353705890,1739994655365,-500.0,0.00014191,2]
[353705892,1739994655375,-503.69824701,0.00014191,2]
[353705894,1739994655384,-500.0,0.00014191,2]
[353705896,1739994655393,-500.0,0.00014191,2]
[353705898,1739994655403,-9751.97,0.00014191,2]
[353705912,1739994655536,-500.0,0.00014191,2]
[353705914,1739994655547,-500.0,0.00014191,2]
[353705916,1739994655557,-799.24,0.00014191,2]
[353705917,1739994655567,-500.0,0.00014191,2]
[353705919,1739994655576,-500.0,0.00014191,2]
[353705921,1739994655585,-500.0,0.00014191,2]
[353705923,1739994655594,-1140.83,0.00014191,2]
[353705925,1739994655605,-500.0,0.00014191,2]
[353705927,1739994655615,-1175.9,0.00014191,2]
[353705929,1739994655624,-500.0,0.00014191,2]
[353705931,1739994655633,-353.66768895,0.00014191,2]
[353705933,1739994655643,-526.28,0.00014191,2]
[353705935,1739994655654,-500.0,0.00014191,2]
[353705937,1739994655665,-500.0,0.00014191,2]
[353705938,1739994655675,-500.0,0.00014191,2]
[353705940,1739994655685,-500.0,0.00014191,2]
[353705942,1739994655695,-500.0,0.00014191,2]
[353705943,1739994655704,-500.0,0.00014191,2]
[353705945,1739994655714,-892.99,0.00014191,2]
[353705947,1739994655723,-500.0,0.00014191,2]
[353705949,1739994655735,-500.0,0.00014191,2]
[353705951,1739994655744,-500.0,0.00014191,2]
[353705953,1739994655754,-2159.61,0.00014191,2]
[353705954,1739994655763,-500.0,0.00014191,2]
[353705956,1739994655773,-500.0,0.00014191,2]
[353705958,1739994655783,-500.0,0.00014191,2]
[353705960,1739994655792,-1264.48,0.00014191,2]
[353705961,1739994655802,-500.0,0.00014191,2]
[353705963,1739994655811,-507.53616707,0.00014191,2]
[353705965,1739994655820,-2363.05,0.00014191,2]
[353705967,1739994655830,-1079.67,0.00014191,2]
[353705969,1739994655839,-6370.63,0.00014191,2]
[353705970,1739994655851,-500.0,0.00014191,2]
[353705972,1739994655861,-1311.75,0.00014191,2]
[353705974,1739994655871,-500.0,0.00014191,2]
[353705976,1739994655880,-500.0,0.00014191,2]
[353705978,1739994655890,-500.0,0.00014191,2]
[353705979,1739994655900,-934.61,0.00014191,2]
[353705981,1739994655909,-500.0,0.00014191,2]
[353705983,1739994655919,-500.0,0.00014191,2]
[353705985,1739994655930,-500.0,0.00014191,2]
[353705987,1739994655940,-500.0,0.00014191,2]
[353705988,1739994655949,-500.0,0.00014191,2]
[353705990,1739994655959,-2409.06,0.00014191,2]
[353705992,1739994655969,-1572.98,0.00014191,2]
[353705994,1739994655978,-500.0,0.00014191,2]
[353705995,1739994655988,-507.24,0.00014191,2]
[353705997,1739994655998,-9076.95,0.00014191,2]
[353705999,1739994656009,-500.0,0.00014191,2]
[353706001,1739994656018,-1313.63,0.00014191,2]
[353706003,1739994656028,-500.0,0.00014191,2]
[353706005,1739994656038,-1949.7,0.00014191,2]
[353706006,1739994656048,-500.0,0.00014191,2]
[353706008,1739994656058,-500.0,0.00014191,2]
[353706010,1739994656067,-708.48,0.00014191,2]
[353706011,1739994656077,-872.8,0.00014191,2]
[353706013,1739994656087,-3593.72,0.00014191,2]
[353706015,1739994656096,-3776.89,0.00014191,2]
[353706017,1739994656106,-1144.4288868,0.00014221,2]
[353706019,1739994656115,-1000.0,0.00014221,2]
[353706021,1739994656125,-513.01338429,0.00014221,2]
[353706022,1739994656134,-1000.0,0.00014221,2]
[353706024,1739994656144,-500.0,0.00014221,2]
[353706026,1739994656153,-500.92393811,0.00014221,2]
[353706028,1739994656163,-409.55912465,0.00014246,2]
[353706029,1739994656173,-1007.8268122,0.00014247,2]
[353706031,1739994656183,-500.0,0.00014247,2]
[353706034,1739994656193,-751.26935303,0.00014256,2]
[353706035,1739994656202,-1071.854575,0.00014273,2]
[353706037,1739994656211,-1071.854575,0.00014273,2]
[353706039,1739994656220,-459.394077,0.00014273,2]
[353706041,1739994656229,-459.394077,0.00014273,2]
[353706042,1739994656238,-500.0,0.00014273,2]
[353706044,1739994656247,-500.0,0.00014273,2]
[353706046,1739994656256,-801.74,0.00014273,2]
[353706048,1739994656266,-534.19,0.00014273,2]
[353706050,1739994656275,-778.36,0.00014273,2]
[353706052,1739994656284,-500.0,0.00014273,2]
[353706054,1739994656293,-500.0,0.00014273,2]
[353706055,1739994656302,-500.0,0.00014273,2]
[353706057,1739994656311,-761.72,0.00014273,2]
[353706059,1739994656321,-500.0,0.00014273,2]
[353706061,1739994656329,-500.0,0.00014273,2]
[353706063,1739994656339,-500.0,0.00014273,2]
[353706065,1739994656348,-779.99,0.00014273,2]
[353706066,1739994656357,-500.0,0.00014273,2]
[353706068,1739994656366,-500.0,0.00014273,2]
[353706070,1739994656375,-500.0,0.00014273,2]
[353706072,1739994656385,-500.0,0.00014273,2]
[353706074,1739994656394,-775.73,0.00014273,2]
[353706076,1739994656404,-500.0,0.00014273,2]
[353706078,1739994656413,-500.0,0.00014273,2]
[353706079,1739994656422,-500.0,0.00014273,2]
[353706081,1739994656431,-500.0,0.00014273,2]
[353706083,1739994656440,-500.0,0.00014273,2]
[353706085,1739994656450,-500.0,0.00014273,2]
[353706087,1739994656459,-500.0,0.00014273,2]
[353706088,1739994656468,-500.0,0.00014273,2]
[353706090,1739994656478,-539.86,0.00014273,2]
[353706092,1739994656487,-1171.45,0.00014273,2]
[353706094,1739994656496,-503.7232288,0.00014273,2]
[353706096,1739994656506,-2720.91,0.00014273,2]
[353706098,1739994656516,-1094.49,0.00014273,2]
[353706100,1739994656525,-500.0,0.00014273,2]
[353706101,1739994656535,-830.75,0.00014273,2]
[353706103,1739994656545,-505.13121033,0.00014273,2]
[353706105,1739994656555,-1198.49,0.00014273,2]
[353706107,1739994656564,-692.65,0.00014273,2]
[353706109,1739994656574,-3116.07,0.00014273,2]
[353706111,1739994656583,-500.0,0.00014273,2]
[353706112,1739994656592,-500.0,0.00014273,2]
[353706114,1739994656601,-500.0,0.00014273,2]
[353706116,1739994656611,-206.916301,0.00014273,2]
[353706118,1739994656620,-206.916301,0.00014273,2]
[353706120,1739994656629,-9751.97,0.00014273,2]
[353706122,1739994656639,-500.0,0.00014273,2]
[353706124,1739994656649,-799.24,0.00014273,2]
[353706125,1739994656662,-500.0,0.00014273,2]
[353706127,1739994656672,-500.0,0.00014273,2]
[353706129,1739994656683,-151.0,0.00014273,2]
[353706131,1739994656693,-1140.83,0.00014273,2]
[353706133,1739994656704,-500.0,0.00014273,2]
[353706135,1739994656714,-1175.9,0.00014273,2]
[353706136,1739994656724,-500.0,0.00014273,2]
[353706138,1739994656734,-526.28,0.00014273,2]
[353706140,1739994656744,-500.0,0.00014273,2]
[353706142,1739994656754,-500.0,0.00014273,2]
[353706144,1739994656763,-500.0,0.00014273,2]
[353706146,1739994656773,-500.0,0.00014273,2]
[353706147,1739994656781,-500.0,0.00014273,2]
[353706149,1739994656791,-500.0,0.00014273,2]
[353706151,1739994656801,-892.99,0.00014273,2]
[353706153,1739994656811,-500.0,0.00014273,2]
[353706155,1739994656820,-500.0,0.00014273,2]
[353706157,1739994656830,-462.03,0.00014273,2]
[353706159,1739994656839,-2159.61,0.00014273,2]
[353706160,1739994656848,-500.0,0.00014273,2]
[353706162,1739994656858,-500.0,0.00014273,2]
[353706164,1739994656868,-500.0,0.00014273,2]
[353706166,1739994656877,-1264.48,0.00014273,2]
[353706168,1739994656886,-500.0,0.00014273,2]
[353706170,1739994656896,-2363.05,0.00014273,2]
[353706171,1739994656905,-1079.67,0.00014273,2]
[353706173,1739994656915,-6370.63,0.00014273,2]
[353706175,1739994656925,-500.0,0.00014273,2]
[353706177,1739994656935,-1311.75,0.00014273,2]
[353706179,1739994656944,-500.0,0.00014273,2]
[353706181,1739994656954,-500.0,0.00014273,2]
[353706182,1739994656963,-500.0,0.00014273,2]
[353706184,1739994656973,-934.61,0.00014273,2]
[353706186,1739994656983,-500.0,0.00014273,2]
[353706188,1739994656992,-500.0,0.00014273,2]
[353706190,1739994657002,-500.0,0.00014273,2]
[353706192,1739994657011,-500.0,0.00014273,2]
[353706194,1739994657022,-500.0,0.00014273,2]
[353706195,1739994657031,-2409.06,0.00014273,2]
[353706197,1739994657040,-1572.98,0.00014273,2]
[353706199,1739994657049,-500.0,0.00014273,2]
[353706201,1739994657058,-507.24,0.00014273,2]
[353706203,1739994657068,-9076.95,0.00014273,2]
[353706205,1739994657078,-502.60910499,0.00014273,2]
[353706206,1739994657087,-1313.63,0.00014273,2]
[353706208,1739994657096,-500.0,0.00014273,2]
[353706210,1739994657106,-151.0,0.00014273,2]
[353706212,1739994657115,-1949.7,0.00014273,2]
[353706214,1739994657124,-500.0,0.00014273,2]
[353706216,1739994657133,-500.0,0.00014273,2]
[353706218,1739994657143,-1155.303409,0.00014273,2]
[353706219,1739994657152,-708.48,0.00014273,2]
[353706221,1739994657161,-1155.303409,0.00014273,2]
[353706223,1739994657170,-872.8,0.00014273,2]
[353706225,1739994657179,-236.102534,0.00014273,2]
[353706227,1739994657189,-3593.72,0.00014273,2]
[353706228,1739994657199,-236.102534,0.00014273,2]
[353706230,1739994657208,-151.0,0.00014273,2]
[353706232,1739994657218,-151.0,0.00014273,2]
[353706234,1739994657227,-3776.89,0.00014273,2]
[353706236,1739994657236,-151.0,0.000143,2]
[353706238,1739994657245,-1000.0,0.00014321,2]
[353706239,1739994657254,-184.97113629,0.00014321,2]
[353706241,1739994657263,-274.89863459,0.00014321,2]
[353706243,1739994657274,-1000.0,0.00014321,2]
[353706245,1739994657283,-1000.0,0.00014321,2]
[353706247,1739994657292,-1000.0,0.00014321,2]
[353706249,1739994657302,-1000.0,0.00014321,2]
[353706251,1739994657311,-572.78652871,0.00014321,2]
[353706252,1739994657321,-500.0,0.00014356,2]
[353706254,1739994657330,-500.0,0.00014356,2]
[353706256,1739994657339,-801.74,0.00014356,2]
[353706258,1739994657349,-534.19,0.00014356,2]
[353706260,1739994657358,-778.36,0.00014356,2]
[353706262,1739994657367,-500.0,0.00014356,2]
[353706264,1739994657376,-500.0,0.00014356,2]
[353706265,1739994657385,-500.0,0.00014356,2]
[353706267,1739994657395,-761.72,0.00014356,2]
[353706269,1739994657404,-500.0,0.00014356,2]